bitfinex-derivatives/quotes_BTCF0:USTF0_20240820
["timestamp","ask_amount","ask_price","bid_price","bid_amount"]
[1724146848492,0.03369307,60912.0,60911.0,0.18918001]
[1724146849192,0.18095451,60912.0,60911.0,0.18918001]
[1724146849583,0.03369307,60912.0,60911.0,0.18918001]
[1724146851387,0.03369307,60912.0,60911.0,0.25482301]
[1724146852193,0.03369307,60912.0,60911.0,0.30377185]
[1724146852194,0.002,60912.0,60911.0,0.30377185]
[1724146852999,0.002,60912.0,60911.0,0.25482301]
[1724146855791,0.002,60912.0,60911.0,0.74734301]
[1724146855995,0.002,60912.0,60911.0,1.14734301]
[1724146857284,0.002,60912.0,60911.0,0.74734301]
[1724146859298,0.002,60912.0,60911.0,0.79629185]
[1724146859697,0.002,60912.0,60911.0,0.30377185]
[1724146859896,0.002,60912.0,60911.0,0.07568001]
[1724146860495,0.1328982,60912.0,60911.0,0.07568001]
[1724146860694,0.16459067,60912.0,60911.0,0.07568001]
[1724146861303,0.03369247,60912.0,60911.0,0.07568001]
[1724146863498,0.03369257,60912.0,60911.0,0.07568001]
[1724146864402,0.16469193,60912.0,60911.0,0.07568001]
[1724146864602,0.09933357,60912.0,60911.0,0.07568001]
[1724146867105,0.067641,60912.0,60911.0,0.07568001]
[1724146873209,0.067641,60912.0,60911.0,0.12458328]
[1724146874109,0.181141,60912.0,60911.0,0.12458328]
[1724146874315,0.246782,60912.0,60911.0,0.05894028]
[1724146875111,0.27847493,60912.0,60911.0,0.01003701]
[1724146875311,0.065642,60911.0,60910.0,0.1135]
[1724146876010,0.065642,60911.0,60910.0,0.179144]
[1724146876607,0.066642,60911.0,60910.0,0.179144]
[1724146876810,0.067642,60911.0,60910.0,0.180144]
[1724146881319,0.067642,60911.0,60910.0,0.20579883]
[1724146882013,0.067642,60911.0,60910.0,0.27113871]
[1724146885319,0.067642,60911.0,60910.0,0.20579883]
[1724146887717,0.002,60911.0,60910.0,0.20579883]
[1724146888429,0.002,60911.0,60910.0,0.22317706]
[1724146891139,0.002,60911.0,60910.0,0.20579868]
[1724146891522,0.002,60911.0,60910.0,0.180144]
[1724146891722,0.002,60911.0,60910.0,0.20579868]
[1724146891937,0.002,60911.0,60910.0,0.180144]
[1724146892131,0.002,60911.0,60910.0,0.20579868]
[1724146897133,0.10041664,60911.0,60910.0,0.20579868]
[1724146898336,0.002,60911.0,60910.0,0.20579868]
[1724146899435,0.002,60911.0,60910.0,0.22317968]
[1724146900345,0.002,60911.0,60910.0,0.22317948]
[1724146900538,0.002,60911.0,60910.0,0.28882348]
[1724146900743,0.002,60911.0,60910.0,0.38341504]
[1724146901143,0.002,60911.0,60910.0,0.38340078]
[1724146903142,0.002,60911.0,60910.0,0.33442348]
[1724146904245,0.002,60911.0,60910.0,0.31704266]
[1724146904439,0.002,60911.0,60910.0,0.33442681]
[1724146904946,0.002,60911.0,60910.0,0.82694681]
[1724146905647,0.002,60911.0,60910.0,0.33442681]
[1724146910848,0.002,60911.0,60910.0,0.48442681]
[1724146913251,0.002,60911.0,60910.0,0.48442083]
[1724146914450,0.002,60911.0,60910.0,0.25967683]
[1724146914650,0.065646,60908.0,60907.0,0.010044]
[1724146914954,0.539946,60908.0,60905.0,0.04898778]
[1724146915351,0.06565,60904.0,60903.0,0.04898778]
[1724146916155,0.06565,60904.0,60901.0,0.23798467]
[1724146916349,0.3608,60902.0,60901.0,0.23798467]
[1724146917471,0.3608,60902.0,60901.0,0.18899689]
[1724146917655,0.3618,60902.0,60901.0,0.23798467]
[1724146918254,0.3618,60902.0,60901.0,0.18899689]
[1724146918557,0.3618,60902.0,60901.0,0.23798467]
[1724146918761,0.3618,60902.0,60901.0,0.18899689]
[1724146919152,0.3628,60902.0,60901.0,0.18899689]
[1724146921349,0.3628,60902.0,60901.0,0.07549689]
[1724146921565,0.3628,60902.0,60900.0,0.00024617]
[1724146921566,0.131306,60901.0,60900.0,0.00024617]
[1724146922662,0.132306,60901.0,60900.0,0.00024617]
[1724146922861,0.133306,60901.0,60900.0,0.00024617]
[1724146924061,0.067653,60901.0,60900.0,0.00024617]
[1724146924266,0.067653,60901.0,60900.0,0.06590017]
[1724146926762,0.002,60901.0,60900.0,0.06590017]
[1724146937377,0.181153,60901.0,60900.0,0.00024617]
[1724146939572,0.181153,60901.0,60891.0,1e-08]
[1724146939573,1.034553,60901.0,60891.0,1e-08]
[1724146939772,1.034553,60901.0,60889.0,0.065665]
[1724146939773,0.4743,60892.0,60889.0,0.065665]
[1724146941170,0.4743,60892.0,60889.0,0.07588277]
[1724146941367,0.065665,60890.0,60889.0,0.07588277]
[1724146942878,0.066665,60890.0,60889.0,0.07588277]
[1724146943468,0.067665,60890.0,60889.0,0.07588277]
[1724146945678,0.067665,60890.0,60889.0,0.01021777]
[1724146945878,0.065668,60887.0,60886.0,0.179169]
[1724146946983,0.066668,60887.0,60886.0,0.18938976]
[1724146948484,0.067668,60887.0,60886.0,0.18938976]
[1724146953479,0.067668,60887.0,60886.0,0.07588976]
[1724146954393,0.181168,60887.0,60886.0,0.07588976]
[1724146954889,0.181168,60887.0,60886.0,0.01022076]
[1724146955185,0.065671,60885.0,60884.0,0.00016411]
[1724146956386,0.066671,60885.0,60884.0,0.00016411]
[1724146956578,0.067671,60885.0,60884.0,0.00998639]
[1724146956783,0.067671,60885.0,60884.0,0.00016411]
[1724146957685,0.067671,60885.0,60884.0,0.11366411]
[1724146957891,0.067671,60885.0,60884.0,0.17933611]
[1724146962786,0.002,60885.0,60884.0,0.17933611]
[1724146963592,0.002,60885.0,60884.0,0.54013611]
[1724146964595,0.002,60885.0,60884.0,0.56579959]
[1724146965190,0.065665,60891.0,60890.0,0.065665]
[1724146965398,0.065665,60891.0,60890.0,0.179165]
[1724146965795,0.065665,60891.0,60890.0,0.226865]
[1724146965992,0.00024617,60897.0,60890.0,0.226865]
[1724146966191,0.00024617,60897.0,60896.0,0.065659]
[1724146966192,0.06590417,60897.0,60896.0,0.065659]
[1724146966391,0.06590417,60897.0,60896.0,0.161659]
[1724146967495,0.06590417,60897.0,60896.0,0.115359]
[1724146967685,0.06590417,60897.0,60896.0,0.065659]
[1724146968194,0.06690417,60897.0,60896.0,0.065659]
[1724146968391,0.06790417,60897.0,60896.0,0.066659]
[1724146969794,0.06790417,60897.0,60896.0,0.001]
[1724146978815,0.13356217,60897.0,60896.0,0.001]
[1724146983607,0.24706217,60897.0,60896.0,0.001]
[1724146988223,0.60786217,60897.0,60896.0,0.001]
[1724146992226,0.70627881,60897.0,60896.0,0.001]
[1724146992625,0.60786217,60897.0,60896.0,0.001]
[1724147002432,0.63956473,60897.0,60896.0,0.001]
[1724147004729,0.46040673,60897.0,60896.0,0.001]
[1724147005836,0.09960673,60897.0,60896.0,0.001]
[1724147006428,0.09960673,60897.0,60896.0,0.066659]
[1724147006936,0.09960673,60897.0,60896.0,0.07833228]
[1724147007733,0.09960673,60897.0,60896.0,0.19183228]
[1724147008736,0.03394873,60897.0,60896.0,0.19183228]
[1724147008925,0.00224617,60897.0,60896.0,0.21749332]
[1724147009931,0.00224617,60897.0,60896.0,0.23489323]
[1724147010136,0.00224617,60897.0,60896.0,0.21749332]
[1724147010333,0.08425729,60897.0,60896.0,0.21749332]
[1724147010538,0.00224617,60897.0,60896.0,0.21749332]
[1724147010743,0.00224617,60897.0,60896.0,0.23489234]
[1724147012147,0.00224617,60897.0,60896.0,0.21749031]
[1724147012348,0.00224617,60897.0,60896.0,0.20923123]
[1724147012636,0.06564,60913.0,60909.0,0.065644]
[1724147012940,0.08201112,60914.0,60909.0,0.065644]
[1724147012941,0.065642,60911.0,60910.0,0.0455]
[1724147013144,0.065642,60911.0,60910.0,0.1445]
[1724147015942,0.065642,60911.0,60910.0,0.1465]
[1724147015943,0.066642,60911.0,60910.0,0.1465]
[1724147016640,0.066642,60911.0,60910.0,0.1475]
[1724147017045,0.066642,60911.0,60910.0,0.15888479]
[1724147017444,0.13851272,60911.0,60910.0,0.15888479]
[1724147019045,0.13851301,60911.0,60910.0,0.15888479]
[1724147020250,0.13851301,60911.0,60910.0,0.22452879]
[1724147023157,0.31890717,60911.0,60910.0,0.22452879]
[1724147023554,0.13851301,60911.0,60910.0,0.22452879]
[1724147023958,0.13851301,60911.0,60910.0,0.213144]
[1724147023959,0.49931301,60911.0,60910.0,0.213144]
[1724147024156,0.67970717,60911.0,60910.0,0.213144]
[1724147024359,0.49931301,60911.0,60910.0,0.213144]
[1724147025659,0.427442,60911.0,60910.0,0.213144]
[1724147027168,0.427442,60911.0,60910.0,0.167644]
[1724147028167,0.066642,60911.0,60910.0,0.167644]
[1724147035279,0.001,60911.0,60910.0,0.167644]
[1724147038781,0.066642,60911.0,60910.0,0.068644]
[1724147040679,0.09833659,60911.0,60910.0,0.068644]
[1724147043175,0.45913659,60911.0,60910.0,0.068644]
[1724147043373,0.49931703,60911.0,60910.0,0.068644]
[1724147045374,0.45913664,60911.0,60910.0,0.068644]
[1724147045573,0.49931714,60911.0,60910.0,0.068644]
[1724147047578,0.427442,60911.0,60910.0,0.068644]
[1724147051883,0.493084,60911.0,60910.0,0.003]
[1724147055289,0.558726,60911.0,60910.0,0.003]
[1724147055489,0.608426,60911.0,60910.0,0.003]
[1724147055679,0.68030442,60911.0,60910.0,0.003]
[1724147056078,0.131298,60905.0,60904.0,0.00024617]
[1724147056274,0.065663,60894.0,60893.0,0.065661]
[1724147056492,0.45815909,60894.0,60893.0,0.065661]
[1724147056692,0.065664,60891.0,60890.0,0.2536]
[1724147056896,0.09736009,60891.0,60890.0,0.15750972]
[1724147057085,0.09736009,60891.0,60890.0,0.1401]
[1724147057978,0.09836009,60891.0,60890.0,0.1401]
[1724147058181,0.09936009,60891.0,60890.0,0.1421]
[1724147058377,0.09936009,60891.0,60890.0,0.207765]
[1724147058985,0.09936009,60891.0,60890.0,0.21943219]
[1724147059584,0.46016009,60891.0,60890.0,0.21943219]
[1724147062487,0.09936009,60891.0,60890.0,0.21943219]
[1724147062694,0.428464,60891.0,60890.0,0.21943219]
[1724147064695,0.067664,60891.0,60890.0,0.21943219]
[1724147065393,0.067664,60891.0,60890.0,0.33293219]
[1724147070990,0.002,60891.0,60890.0,0.39859719]
[1724147071493,0.00024617,60897.0,60896.0,0.065659]
[1724147071691,0.00024617,60897.0,60896.0,0.228053]
[1724147072302,0.06590417,60897.0,60896.0,0.228053]
[1724147073001,0.06690417,60897.0,60896.0,0.229053]
[1724147073201,0.06790417,60897.0,60896.0,0.229053]
[1724147074499,0.06790417,60897.0,60896.0,0.180159]
[1724147077598,0.06790417,60897.0,60896.0,0.066659]
[1724147082406,0.09960475,60897.0,60896.0,0.066659]
[1724147085791,0.06790417,60897.0,60896.0,0.1155948]
[1724147088510,0.06790417,60897.0,60896.0,0.11569249]
[1724147089813,0.06790417,60897.0,60896.0,0.066659]
[1724147091412,0.06790417,60897.0,60896.0,0.1156917]
[1724147091600,0.06790417,60897.0,60896.0,0.001]
[1724147091800,0.13356217,60897.0,60896.0,0.001]
[1724147092000,0.17866217,60897.0,60896.0,0.001]
[1724147092508,0.17866217,60897.0,60896.0,0.05004699]
[1724147092809,0.17866217,60897.0,60896.0,0.001]
[1724147095596,0.21036331,60897.0,60896.0,0.001]
[1724147096610,0.27602131,60897.0,60896.0,0.001]
[1724147096903,0.27602131,60897.0,60888.0,0.3608]
[1724147096904,0.131332,60889.0,60888.0,0.3608]
[1724147097107,0.244832,60889.0,60888.0,0.3608]
[1724147098002,0.06567,60885.0,60884.0,0.04536411]
[1724147098203,0.06567,60885.0,60884.0,0.00016411]
[1724147098204,0.17917,60885.0,60884.0,0.00016411]
[1724147098602,0.34326853,60885.0,60884.0,0.00016411]
[1724147099411,0.24484,60885.0,60884.0,0.00016411]
[1724147099607,0.24584,60885.0,60884.0,0.00016411]
[1724147100614,0.24684,60885.0,60884.0,0.00016411]
[1724147101005,0.25824442,60885.0,60884.0,0.00016411]
[1724147101205,0.25824442,60885.0,60884.0,0.04918294]
[1724147101911,0.13334,60885.0,60884.0,0.04918294]
[1724147102114,0.24684,60885.0,60884.0,0.04918294]
[1724147103006,0.24684,60885.0,60884.0,0.00016411]
[1724147106413,0.06767,60885.0,60884.0,0.11366411]
[1724147106608,0.06767,60885.0,60884.0,0.00016411]
[1724147107517,0.06767,60885.0,60884.0,0.06583511]
[1724147108611,0.06767,60885.0,60884.0,0.17933511]
[1724147110312,0.1495898,60885.0,60884.0,0.17933511]
[1724147110902,0.1495898,60885.0,60884.0,0.06583511]
[1724147111321,0.06767,60885.0,60884.0,0.06583511]
[1724147115016,0.06767,60885.0,60884.0,0.17933511]
[1724147115817,0.06767,60885.0,60884.0,0.22835394]
[1724147117420,0.06767,60885.0,60884.0,0.11485394]
[1724147117621,0.06767,60885.0,60884.0,0.22835394]
[1724147119218,0.06767,60885.0,60884.0,0.06583511]
[1724147121410,0.06767,60885.0,60884.0,0.00016411]
[1724147123133,0.13334,60885.0,60884.0,0.00016411]
[1724147127025,0.19901,60885.0,60884.0,0.00016411]
[1724147127234,0.69173,60885.0,60884.0,0.00016411]
[1724147127534,0.73943,60885.0,60884.0,0.00016411]
[1724147127727,0.67376,60885.0,60884.0,0.00016411]
[1724147128331,0.77218853,60885.0,60884.0,0.00016411]
[1724147128834,0.73943,60885.0,60884.0,0.00016411]
[1724147129226,0.73943,60885.0,60877.0,0.04909878]
[1724147129227,0.131356,60878.0,60877.0,0.04909878]
[1724147129531,0.492156,60878.0,60877.0,0.04909878]
[1724147129928,0.492156,60878.0,60875.0,0.04909878]
[1724147129929,0.13136,60876.0,60875.0,0.04909878]
[1724147130136,0.13136,60876.0,60872.0,0.065192]
[1724147130137,0.131362,60875.0,60874.0,0.04909878]
[1724147130328,0.244862,60875.0,60874.0,0.04909878]
[1724147131031,0.131368,60872.0,60871.0,0.3608]
[1724147131235,0.244868,60872.0,60871.0,0.3608]
[1724147131930,0.065685,60871.0,60870.0,0.01110318]
[1724147132132,0.065685,60871.0,60869.0,0.09698286]
[1724147132133,0.065687,60870.0,60869.0,0.09698286]
[1724147133126,0.065687,60870.0,60869.0,0.0479]
[1724147133534,0.065687,60870.0,60869.0,0.05916974]
[1724147134034,0.066687,60870.0,60869.0,0.05916974]
[1724147134844,0.066687,60870.0,60869.0,0.12485774]
[1724147135837,0.067687,60870.0,60869.0,0.12485774]
[1724147137445,0.067687,60870.0,60869.0,0.23835774]
[1724147138532,0.067687,60870.0,60869.0,0.12485774]
[1724147138738,0.067687,60870.0,60869.0,0.07695774]
[1724147138937,0.067687,60870.0,60869.0,0.06042453]
[1724147141730,0.067687,60870.0,60869.0,0.12611253]
[1724147143242,0.067687,60870.0,60869.0,0.07695774]
[1724147146142,0.067687,60870.0,60869.0,0.19045774]
[1724147146740,0.067687,60870.0,60869.0,0.07695774]
[1724147149548,0.067687,60870.0,60869.0,0.01126974]
[1724147149746,0.065688,60869.0,60868.0,0.0472]
[1724147150042,0.179188,60869.0,60868.0,0.0472]
[1724147151238,0.180188,60869.0,60868.0,0.0472]
[1724147151635,0.181188,60869.0,60868.0,0.0472]
[1724147152048,0.181188,60869.0,60868.0,0.12368662]
[1724147154155,0.181188,60869.0,60868.0,0.05824281]
[1724147161450,0.181188,60869.0,60868.0,0.12393215]
[1724147162352,0.181188,60869.0,60868.0,0.11288934]
[1724147167362,0.246876,60869.0,60868.0,0.11288934]
[1724147167566,0.246876,60869.0,60868.0,0.0472]
[1724147168458,0.181188,60869.0,60868.0,0.112889]
[1724147168662,0.067688,60869.0,60868.0,0.25206043]
[1724147168960,0.067688,60869.0,60868.0,0.3338652]
[1724147169160,0.067688,60869.0,60868.0,0.25206043]
[1724147169369,0.4743,60876.0,60875.0,0.065681]
[1724147170359,0.539981,60876.0,60875.0,0.065681]
[1724147170562,0.540981,60876.0,60875.0,0.065681]
[1724147170954,0.541981,60876.0,60875.0,0.065681]
[1724147172454,0.541981,60876.0,60875.0,0.11492722]
[1724147172960,0.541981,60876.0,60875.0,0.065681]
[1724147173565,0.541981,60876.0,60875.0,0.11492722]
[1724147174764,0.002,60876.0,60875.0,0.09135076]
[1724147176368,0.002,60876.0,60875.0,0.10882581]
[1724147176760,0.002,60876.0,60875.0,0.11998004]
[1724147177359,0.002,60876.0,60875.0,0.19033523]
[1724147177671,0.002,60876.0,60875.0,0.23347946]
[1724147177857,0.002,60876.0,60875.0,0.23347935]
[1724147178864,0.002,60876.0,60875.0,0.21600436]
[1724147180670,0.002,60876.0,60875.0,0.10250436]
[1724147180872,0.002,60876.0,60875.0,0.23347669]
[1724147182468,0.002,60876.0,60875.0,0.11997669]
[1724147182875,0.1155,60876.0,60875.0,0.11997669]
[1724147185463,0.1155,60876.0,60875.0,0.14239125]
[1724147185662,0.1155,60876.0,60875.0,0.16806006]
[1724147185872,0.1155,60876.0,60875.0,0.10250404]
[1724147186070,0.18118,60876.0,60875.0,0.10250404]
[1724147186276,0.18118,60876.0,60875.0,0.03682304]
[1724147186478,0.24686,60876.0,60875.0,0.04916844]
[1724147186671,0.065681,60875.0,60871.0,0.04916844]
[1724147186974,0.065681,60875.0,60870.0,0.04916844]
[1724147186975,0.065685,60871.0,60870.0,0.04916844]
[1724147187177,0.179185,60871.0,60870.0,0.04916844]
[1724147187376,0.24487,60871.0,60870.0,0.04916844]
[1724147187576,0.065688,60869.0,60866.0,0.00018799]
[1724147187763,0.1135,60867.0,60866.0,0.00018799]
[1724147187965,0.1135,60867.0,60866.0,0.04936834]
[1724147188273,0.17919,60867.0,60866.0,0.04936834]
[1724147188873,0.17919,60867.0,60866.0,0.05036834]
[1724147189078,0.17919,60867.0,60866.0,0.00118799]
[1724147189474,0.18019,60867.0,60866.0,0.00118799]
[1724147189881,0.18119,60867.0,60866.0,0.00218799]
[1724147192377,0.18119,60867.0,60866.0,0.05136834]
[1724147193478,0.06769,60867.0,60866.0,0.05136834]
[1724147193683,0.06769,60867.0,60866.0,0.00218799]
[1724147194381,0.06769,60867.0,60866.0,0.06787899]
[1724147195083,0.06769,60867.0,60866.0,0.1170365]
[1724147195380,0.06769,60867.0,60866.0,0.06787899]
[1724147196074,0.002,60867.0,60866.0,0.06787899]
[1724147196376,0.002,60867.0,60866.0,0.09355115]
[1724147196577,0.002,60867.0,60866.0,0.15910717]
[1724147197377,0.002,60867.0,60866.0,0.09355115]
[1724147198474,0.002,60867.0,60866.0,0.06787899]
[1724147198781,0.002,60867.0,60866.0,0.09355035]
[1724147202578,0.002,60867.0,60866.0,0.09354982]
[1724147203091,0.002,60867.0,60866.0,0.0935498]
[1724147204382,0.002,60867.0,60866.0,0.15909735]
[1724147205288,0.002,60867.0,60866.0,0.0935498]
[1724147205595,0.002,60867.0,60866.0,0.09355114]
[1724147205790,0.002,60867.0,60866.0,0.15909869]
[1724147206287,0.002,60867.0,60866.0,0.06787899]
[1724147206488,0.002,60867.0,60866.0,0.09355103]
[1724147206691,0.002,60867.0,60866.0,0.15909858]
[1724147207799,0.002,60867.0,60866.0,0.15908999]
[1724147207992,0.002,60867.0,60866.0,0.09355103]
[1724147208189,0.002,60867.0,60866.0,0.15924203]
[1724147208494,0.06568,60876.0,60875.0,0.065681]
[1724147209593,0.06668,60876.0,60875.0,0.066681]
[1724147209995,0.06668,60876.0,60875.0,0.001]
[1724147210787,0.06768,60876.0,60875.0,0.003]
[1724147212390,0.133361,60876.0,60875.0,0.003]
[1724147212995,0.494161,60876.0,60875.0,0.003]
[1724147213591,0.607661,60876.0,60875.0,0.003]
[1724147215794,0.54198,60876.0,60875.0,0.003]
[1724147216499,0.54198,60876.0,60875.0,0.05215081]
[1724147217099,0.54198,60876.0,60875.0,0.003]
[1724147217592,0.60766,60876.0,60875.0,0.003]
[1724147217793,0.54198,60876.0,60875.0,0.003]
[1724147218097,0.54198,60876.0,60875.0,0.068681]
[1724147220499,0.3628,60876.0,60875.0,0.068681]
[1724147222099,0.3628,60876.0,60875.0,0.24771542]
[1724147223303,0.3628,60876.0,60875.0,0.182181]
[1724147223601,0.3628,60876.0,60875.0,0.24771542]
[1724147225603,0.002,60876.0,60875.0,0.24771542]
[1724147225801,0.002,60876.0,60875.0,0.13421542]
[1724147226997,0.002,60876.0,60875.0,0.24771542]
[1724147229012,0.002,60876.0,60875.0,0.20785008]
[1724147229304,0.002,60876.0,60875.0,0.247862]
[1724147229498,0.002,60876.0,60875.0,0.2735304]
[1724147235106,0.002,60876.0,60875.0,0.27332658]
[1724147235308,0.002,60876.0,60875.0,0.15982658]
[1724147235505,0.002,60876.0,60875.0,0.13415818]
[1724147235705,0.002,60876.0,60875.0,0.15982673]
[1724147236014,0.002,60876.0,60875.0,0.13415818]
[1724147236817,0.06768,60876.0,60875.0,0.06847718]
[1724147236998,0.06768,60876.0,60875.0,0.003]
[1724147237203,0.06768,60876.0,60875.0,0.05211813]
[1724147237506,0.06768,60876.0,60875.0,0.003]
[1724147238512,0.13336,60876.0,60875.0,0.003]
[1724147238817,0.14437411,60876.0,60875.0,0.003]
[1724147244210,0.50517411,60876.0,60875.0,0.003]
[1724147245412,0.90517411,60876.0,60868.0,0.04911813]
[1724147245616,0.06569,60867.0,60866.0,0.04930612]
[1724147246908,0.06669,60867.0,60866.0,0.05130612]
[1724147247111,0.06769,60867.0,60866.0,0.05330612]
[1724147247513,0.06769,60867.0,60866.0,0.06427921]
[1724147248022,0.06769,60867.0,60866.0,0.08085208]
[1724147249519,0.06769,60867.0,60866.0,0.1299775]
[1724147249721,0.06769,60867.0,60866.0,0.10652526]
[1724147250016,0.06769,60867.0,60866.0,0.10652505]
[1724147251412,0.06769,60867.0,60866.0,0.08085208]
[1724147253615,0.06769,60867.0,60866.0,0.12996797]
[1724147254126,0.06769,60867.0,60866.0,0.08085208]
[1724147256717,0.06769,60867.0,60866.0,0.10652509]
[1724147257730,0.06769,60867.0,60866.0,0.08085208]
[1724147258034,0.06769,60867.0,60866.0,0.10652499]
[1724147258330,0.06769,60867.0,60866.0,0.17200217]
[1724147261519,0.06769,60867.0,60866.0,0.10652499]
[1724147261721,0.06769,60867.0,60866.0,0.17202669]
[1724147262128,0.06769,60867.0,60866.0,0.1720261]
[1724147262520,0.06769,60867.0,60866.0,0.1065244]
[1724147264422,0.002,60867.0,60866.0,0.1065244]
[1724147264819,0.002,60867.0,60866.0,0.1722154]
[1724147265030,0.002,60867.0,60866.0,0.25402017]
[1724147265235,0.002,60867.0,60866.0,0.37913251]
[1724147265526,0.3608,60872.0,60871.0,0.065685]
[1724147265833,0.3608,60872.0,60871.0,0.24472711]
[1724147266337,0.1135,60877.0,60876.0,0.06568]
[1724147267424,0.179179,60877.0,60876.0,0.06568]
[1724147267623,0.179179,60877.0,60876.0,0.06668]
[1724147267624,0.180179,60877.0,60876.0,0.06668]
[1724147267824,0.181179,60877.0,60876.0,0.06768]
[1724147272328,0.067679,60877.0,60876.0,0.06768]
[1724147272532,0.181179,60877.0,60876.0,0.06768]
[1724147275139,0.181179,60877.0,60876.0,0.07839445]
[1724147275638,0.181179,60877.0,60876.0,0.06768]
[1724147276238,0.067679,60877.0,60876.0,0.06768]
[1724147276440,0.181179,60877.0,60876.0,0.06768]
[1724147279434,0.181179,60877.0,60876.0,0.002]
[1724147279435,0.246858,60877.0,60876.0,0.002]
[1724147281337,0.133358,60877.0,60876.0,0.002]
[1724147281734,0.246858,60877.0,60876.0,0.002]
[1724147282337,0.246858,60877.0,60876.0,0.06768]
[1724147287149,0.246858,60877.0,60876.0,0.11685599]
[1724147289047,0.607658,60877.0,60876.0,0.11685599]
[1724147290433,0.607658,60877.0,60876.0,0.06768]
[1724147292943,0.607658,60877.0,60876.0,0.05122281]
[1724147293454,0.607658,60877.0,60876.0,0.002]
[1724147297848,0.246858,60877.0,60876.0,0.002]
[1724147298042,0.607658,60877.0,60876.0,0.002]
[1724147300251,0.494158,60877.0,60876.0,0.06768]
[1724147300556,0.494158,60877.0,60876.0,0.11438]
[1724147300557,0.133358,60877.0,60876.0,0.11438]
[1724147301054,0.133358,60877.0,60876.0,0.22788]
[1724147301356,0.133358,60877.0,60876.0,0.2535491]
[1724147301357,0.067679,60877.0,60876.0,0.2535491]
[1724147301753,0.00024637,60882.0,60876.0,0.2535491]
[1724147301944,0.08211952,60885.0,60881.0,0.1135]
[1724147302250,0.08211952,60888.0,60884.0,0.1135]
[1724147302453,0.42742601,60889.0,60887.0,0.1135]
[1724147302454,0.426466,60889.0,60887.0,0.1135]
[1724147302654,0.427306,60889.0,60888.0,0.0479]
[1724147302948,0.426466,60889.0,60888.0,0.0479]
[1724147303348,0.426466,60889.0,60888.0,0.113567]
[1724147303551,0.426466,60889.0,60888.0,0.16272489]
[1724147303751,0.427466,60889.0,60888.0,0.16272489]
[1724147304052,0.002,60889.0,60888.0,0.115567]
[1724147304248,0.002,60889.0,60888.0,0.116567]
[1724147304651,0.002,60889.0,60888.0,0.14222968]
[1724147305455,0.002,60889.0,60888.0,0.116567]
[1724147305844,0.002,60889.0,60888.0,0.12746205]
[1724147307550,0.002,60889.0,60888.0,0.17653557]
[1724147308346,0.002,60889.0,60888.0,0.12746205]
[1724147310456,0.03370203,60889.0,60888.0,0.12746205]
[1724147310666,0.11686064,60889.0,60888.0,0.12746205]
[1724147310964,0.03370203,60889.0,60888.0,0.12746205]
[1724147313055,0.002,60889.0,60888.0,0.12746205]
[1724147316565,0.002,60889.0,60888.0,0.48826205]
[1724147317064,0.002,60889.0,60888.0,0.12746205]
[1724147317364,0.002,60889.0,60888.0,0.48826205]
[1724147317660,0.03370187,60889.0,60888.0,0.48826205]
[1724147318065,0.03370187,60889.0,60888.0,0.12746205]
[1724147318265,0.03370187,60889.0,60888.0,0.48826205]
[1724147318672,0.002,60889.0,60888.0,0.48826205]
[1724147325771,0.03370267,60889.0,60888.0,0.48826205]
[1724147326167,0.03370267,60889.0,60888.0,0.12746205]
[1724147327265,0.002,60889.0,60888.0,0.12746205]
[1724147329461,0.0337025,60889.0,60888.0,0.12746205]
[1724147330975,0.0337025,60889.0,60888.0,0.07956205]
[1724147333573,0.002,60889.0,60888.0,0.07956205]
[1724147337975,0.002,60889.0,60888.0,0.16148388]
[1724147340687,0.002,60889.0,60888.0,0.07956205]
[1724147345383,0.002,60889.0,60888.0,0.21872491]
[1724147347686,0.10052433,60889.0,60888.0,0.21872491]
[1724147348784,0.002,60889.0,60888.0,0.21872491]
[1724147349287,0.002,60889.0,60888.0,0.23618332]
[1724147350992,0.002,60889.0,60888.0,0.23618348]
[1724147352881,0.002,60889.0,60888.0,0.28248348]
[1724147354989,0.002,60889.0,60888.0,0.28248979]
[1724147355290,0.002,60889.0,60888.0,0.36441139]
[1724147356483,0.002,60889.0,60888.0,0.28248956]
[1724147357088,0.002,60889.0,60888.0,0.36456133]
[1724147358584,0.002,60889.0,60888.0,0.34709668]
[1724147358984,0.002,60889.0,60888.0,0.23359668]
[1724147360400,0.002,60889.0,60888.0,0.18729668]
[1724147360585,0.181167,60889.0,60888.0,0.11073463]
[1724147361496,0.19176337,60889.0,60888.0,0.11073463]
[1724147362697,0.19176337,60889.0,60888.0,0.08507177]
[1724147362897,0.19176337,60889.0,60888.0,0.11073526]
[1724147365884,0.19176337,60889.0,60888.0,0.09432517]
[1724147367090,0.19176337,60889.0,60888.0,0.0943265]
[1724147367294,0.07826337,60889.0,60888.0,0.0943265]
[1724147367491,0.19176337,60889.0,60888.0,0.0943265]
[1724147370489,0.131342,60885.0,60884.0,0.08207177]
[1724147370710,0.065675,60881.0,60880.0,0.09988612]
[1724147370996,0.179175,60881.0,60880.0,0.0014]
[1724147371302,0.579175,60881.0,60880.0,0.0014]
[1724147371797,0.579175,60881.0,60878.0,0.31482188]
[1724147371798,0.065677,60879.0,60878.0,0.31482188]
[1724147371999,0.426477,60879.0,60878.0,0.31482188]
[1724147374802,0.427477,60879.0,60878.0,0.31482188]
[1724147375199,0.428477,60879.0,60878.0,0.31482188]
[1724147378903,0.428477,60879.0,60878.0,0.38050088]
[1724147380303,0.428477,60879.0,60878.0,0.31482188]
[1724147381007,0.428477,60879.0,60872.0,0.3261]
[1724147381008,0.065684,60873.0,60872.0,0.3261]
[1724147381310,0.179184,60873.0,60872.0,0.3261]
[1724147381609,0.179184,60873.0,60872.0,0.01075409]
[1724147381905,0.179184,60873.0,60870.0,0.3608]
[1724147381906,0.065686,60871.0,60870.0,0.3608]
[1724147382707,0.1145,60873.0,60869.0,0.065687]
[1724147382708,0.065687,60870.0,60869.0,0.065687]
[1724147383402,0.001,60871.0,60870.0,0.065687]